[Event "2nd ESNAICC Women 2024"]
[Site "Andorra la Vella"]
[Date "2024.06.29"]
[Round "9.3"]
[White "Henderson de La Fuente, Andrea"]
[Black "Zvereva, Marija"]
[Result "1-0"]
[ECO "A43"]
[WhiteElo "1966"]
[BlackElo "2040"]
[Annotator "NA RC"]
[PlyCount "63"]
[EventDate "2024.06.24"]
[EventType "tourn"]
[EventCountry "AND"]
[SourceTitle "playchess.com"]
[Source "ChessBase"]
[SourceQuality "1"]
[TimeControl "40/5400+30:1800+30"]

1. d4 {[%emt 0:00:02]} Nf6 {[%emt 0:00:29]} 2. Nf3 {[%emt 0:00:10]} c5 {[%emt 0:07:42]} 3. d5 {[%emt 0:03:35]} e6 {[%emt 0:01:02]} 4. Nc3 {[%emt 0:07:09]} d6 {[%emt 0:04:43]} 5. e4 {[%emt 0:01:38]} a6 {[%emt 0:03:52]} 6. a4 {[%emt 0:00:13] A43: Schmid Benoni.} Be7 {[%emt 0:06:01] is the legacy move (6...exd5).} 7. Be2 {[%emt 0:06:00]} exd5 {[%emt 0:02:30]} 8. Nxd5 {[%emt 0:06:57]} Nxd5 {[%emt 0:03:26]} 9. Qxd5 {[%emt 0:00:33]} Nc6 {[%emt 0:00:19]} 10. Bc4 $146 {[%emt 0:06:02]} ({Predecessor:} 10. Bf4 Be6 11. Qd2 Qb6 12. O-O Rd8 13. a5 Qa7 14. c4 O-O 15. Rfd1 f6 16. Ra3 {1-0 Barseghyan,A (1748)-Yerkenov,T (1925) Wch U10 Al Ain 2013 (11)}) 10... Be6 {[%emt 0:20:25]} 11. Qd3 {[%emt 0:00:09]} O-O {[%emt 0:07:14]} 12. O-O {[%emt 0:01:27]} Nb4 {[%emt 0:03:35]} 13. Qb3 {[%emt 0:02:34]} Bxc4 {[%emt 0:05:01]} 14. Qxc4 {[%emt 0:00:05]} b5 {[%emt 0:02:42]} 15. axb5 {[%emt 0:22:00]} axb5 {[%emt 0:00:06]} 16. Rxa8 {[%emt 0:00:04]} Qxa8 {[%emt 0:03:18]} 17. Qxb5 {[%emt 0:01:39]} Qxe4 {[%emt 0:04:29]} 18. c3 {[%emt 0:08:17]} Nd3 {[%emt 0:00:36]} 19. Be3 {[%emt 0:02:19]} Bf6 $11 {[%emt 0:08:56]} 20. Rd1 {[%emt 0:13:19]} c4 {[%emt 0:02:07]} 21. Nd2 {[%emt 0:02:58]} Qg4 {[%emt 0:00:27]} 22. Ra1 {[%emt 0:02:32]} d5 {[%emt 0:04:39]} 23. Qxd5 {[%emt 0:01:03]} Nxb2 {[%emt 0:00:04]} 24. Ne4 {[%emt 0:01:41]} Be7 {[%emt 0:05:05]} 25. Qb7 {[%emt 0:03:35]} Qe6 {[%emt 0:01:18]} 26. Ra6 {[%emt 0:00:20]} Qe5 {[%emt 0:01:40]} 27. Bd4 {[%emt 0:00:22]} Qf4 {[%emt 0:00:27]} 28. Ra1 {[%emt 0:01:14]} Bd8 {[%emt 0:00:48]} 29. g3 {[%emt 0:01:20]} Qf5 {[%emt 0:00:50]} 30. Bc5 {[%emt 0:00:43]} Re8 {[%emt 0:00:35]} 31. Nd6 {[%emt 0:00:04]} Qxc5 {[%emt 0:00:29]} 32. Qxf7+ {[%emt 0:00:05]} 1-0

[Event "2nd ESNAICC Women 2024"]
[Site "Andorra la Vella"]
[Date "2024.06.29"]
[Round "9.4"]
[White "Berend, Elvira"]
[Black "Thornton, Filipina"]
[Result "1-0"]
[ECO "E68"]
[WhiteElo "2230"]
[BlackElo "1787"]
[Annotator "RC"]
[PlyCount "63"]
[EventDate "2024.06.24"]
[EventType "tourn"]
[EventCountry "AND"]
[SourceTitle "playchess.com"]
[Source "ChessBase"]
[SourceQuality "1"]
[TimeControl "40/5400+30:1800+30"]

1. d4 {[%emt 0:00:06]} Nf6 {[%emt 0:00:09]} 2. c4 {[%emt 0:00:16]} g6 {[%emt 0:00:07]} 3. Nf3 {[%emt 0:00:06]} Bg7 {[%emt 0:00:15]} 4. g3 {[%emt 0:00:08]} d6 {[%emt 0:00:04]} 5. Bg2 {[%emt 0:00:06]} O-O {[%emt 0:00:28]} 6. O-O {[%emt 0:00:07]} Nbd7 {[%emt 0:04:24]} 7. Nc3 {[%emt 0:00:40]} h6 {[%emt 0:02:24]} 8. e4 {[%emt 0:02:10]} e5 {[%emt 0:00:28]} 9. Re1 {[%emt 0:00:35]} Nh5 {[%emt 0:01:19]} 10. Rb1 {[%emt 0:03:30]} exd4 {[%emt 0:07:14]} 11. Nxd4 {[%emt 0:00:33]} Ne5 {[%emt 0:00:17]} 12. Qe2 {[%emt 0:04:08]} c6 {[%emt 0:04:36]} 13. Be3 {[%emt 0:09:12]} Qf6 {[%emt 0:04:54]} 14. f3 {[%emt 0:03:52]} Qe7 {[%emt 0:01:46]} 15. Bf2 {[%emt 0:05:20]} Be6 {[%emt 0:02:03]} 16. b3 {[%emt 0:06:22]} c5 {[%emt 0:06:09]} 17. Nxe6 {[%emt 0:00:50]} fxe6 {[%emt 0:00:13]} 18. f4 {[%emt 0:05:43]} Nc6 {[%emt 0:01:11]} 19. Qd3 {[%emt 0:00:27]} Qf6 {[%emt 0:05:44]} 20. Rbc1 {[%emt 0:05:40]} Rad8 {[%emt 0:02:13]} 21. Rf1 {[%emt 0:00:48]} a6 {[%emt 0:06:30]} 22. Kh1 {[%emt 0:03:58]} g5 {[%emt 0:08:42]} 23. Qd1 {[%emt 0:06:42]} Qg6 {[%emt 0:03:53]} 24. f5 {[%emt 0:00:53]} Qe8 {[%emt 0:04:11]} 25. fxe6 {[%emt 0:01:01]} Nf6 {[%emt 0:01:16]} 26. Bh3 {[%emt 0:01:03]} Ne5 {[%emt 0:01:00]} 27. Bf5 {[%emt 0:00:36]} g4 {[%emt 0:01:33]} 28. Be3 {[%emt 0:01:51]} Qh5 {[%emt 0:02:14]} 29. e7 {[%emt 0:00:32]} Nf3 {[%emt 0:01:18]} 30. Rf2 {[%emt 0:00:55]} Nh7 {[%emt 0:02:34]} 31. exd8=Q {[%emt 0:37:50]} Rxd8 {[%emt 0:00:18]} 32. Qd5+ {[%emt 0:00:00]} 1-0

[Event "2nd ESNAICC Women 2024"]
[Site "Andorra la Vella"]
[Date "2024.06.29"]
[Round "9.5"]
[White "Markidou, Christianna"]
[Black "Nevska, Gerda"]
[Result "0-1"]
[ECO "B41"]
[WhiteElo "1676"]
[BlackElo "1872"]
[Annotator "NA RC"]
[PlyCount "118"]
[EventDate "2024.06.24"]
[EventType "tourn"]
[EventCountry "AND"]
[SourceTitle "playchess.com"]
[Source "ChessBase"]
[SourceQuality "1"]
[TimeControl "40/5400+30:1800+30"]

1. e4 {[%emt 0:00:10]} c5 {[%emt 0:00:03]} 2. Nf3 {[%emt 0:03:07]} a6 {[%emt 0:00:05]} 3. a4 {[%emt 0:01:07]} e6 {[%emt 0:06:24]} 4. d4 {[%emt 0:00:34]} cxd4 {[%emt 0:00:13]} 5. Nxd4 {[%emt 0:00:10]} Nf6 {[%emt 0:00:14]} 6. Bd3 {[%emt 0:01:49]} e5 {[%emt 0:05:40]} 7. Nf3 {[%emt 0:03:24]} d5 {[%emt 0:14:28]} 8. Nbd2 {[%emt 0:05:47]} dxe4 {[%emt 0:04:56]} 9. Nxe4 {[%emt 0:00:29]} Bg4 {[%emt 0:03:47]} 10. h3 {[%emt 0:00:54]} Bh5 {[%emt 0:00:10]} 11. Nxf6+ {[%emt 0:01:49]} gxf6 {[%emt 0:00:43]} 12. O-O {[%emt 0:03:45]} Nc6 {[%emt 0:03:55]} 13. c3 {[%emt 0:00:32]} Qd7 {[%emt 0:09:24]} 14. Be4 {[%emt 0:01:50]} Bd6 {[%emt 0:07:13]} 15. Qd3 {[%emt 0:01:39]} Bg6 {[%emt 0:00:57]} 16. Nh4 {[%emt 0:03:20]} Bxe4 {[%emt 0:05:40]} 17. Qxe4 {[%emt 0:00:20]} Ne7 {[%emt 0:00:16]} 18. Rd1 {[%emt 0:08:29]} O-O-O {[%emt 0:09:09]} 19. Be3 {[%emt 0:03:46]} Qe6 {[%emt 0:00:52]} 20. Nf3 {[%emt 0:04:32]} Rhg8 {[%emt 0:03:06]} 21. Kh2 {[%emt 0:03:29]} f5 {[%emt 0:03:16]} 22. Rxd6 {[%emt 0:06:42]} Rxd6 {[%emt 0:04:56]} 23. Qxe5 {[%emt 0:00:28]} Qxe5+ {[%emt 0:00:48]} 24. Nxe5 {[%emt 0:00:10]} f6 {[%emt 0:01:05]} 25. Nf3 {[%emt 0:03:36]} Nd5 {[%emt 0:01:25]} 26. Rd1 {[%emt 0:01:17]} Rd7 {[%emt 0:01:41]} 27. Bd4 {[%emt 0:01:18]} Kd8 {[%emt 0:04:56]} 28. c4 {[%emt 0:01:15]} Nf4 {[%emt 0:00:47]} 29. Bxf6+ {[%emt 0:00:29]} Ke8 {[%emt 0:00:05]} 30. Re1+ {[%emt 0:02:19]} Kf8 {[%emt 0:03:30]} 31. Nh4 {[%emt 0:05:49]} Kf7 {[%emt 0:00:30]} 32. Bc3 {[%emt 0:01:36]} Nd3 {[%emt 0:01:18]} 33. Re2 {[%emt 0:04:50]} Rg5 {[%emt 0:02:26]} 34. Nf3 {[%emt 0:03:21]} Rg6 {[%emt 0:01:02]} 35. Re3 {[%emt 0:02:04]} Rgd6 {[%emt 0:02:00]} 36. Nh4 {[%emt 0:05:30]} f4 {[%emt 0:00:20]} 37. Re4 {[%emt 0:01:07]} Re6 {[%emt 0:00:11]} 38. Rxe6 {[%emt 0:02:30]} Kxe6 {[%emt 0:00:02]} 39. Nf3 {[%emt 0:08:33]} Nxf2 {[%emt 0:00:12]} 40. h4 {[%emt 0:00:00]} Ne4 {[%emt 0:00:00]} 41. Be1 {[%emt 0:23:26]} Rd3 {[%emt 0:33:15]} 42. b4 {[%emt 0:00:49]} Ra3 {[%emt 0:00:00]} 43. a5 {[%emt 0:00:13]} Nd6 {[%emt 0:00:00]} 44. c5 {[%emt 0:00:50]} Ne4 {[%emt 0:00:00]} 45. Nd4+ {[%emt 0:03:59]} Kd5 {[%emt 0:00:00]} 46. Nf5 {[%emt 0:00:47]} Ke5 {[%emt 0:00:00]} 47. Nd6 {[%emt 0:07:05]} Nxd6 {[%emt 0:00:00]} 48. cxd6 {[%emt 0:00:08]} Kxd6 {[%emt 0:00:00]} 49. Bf2 {[%emt 0:01:35]} Kd5 {[%emt 0:00:00]} 50. Bc5 {[%emt 0:00:19]} Rc3 {[%emt 0:00:00]} 51. Be7 {[%emt 0:01:01]} Kc6 {[%emt 0:00:00]} 52. h5 {[%emt 0:00:25]} Kb5 {[%emt 0:00:00]} 53. Bd6 {[%emt 0:01:17]} f3 {[%emt 0:00:00]} 54. g4 {[%emt 0:00:47]} Rc4 {[%emt 0:00:00]} 55. Kg3 {[%emt 0:00:45]} Rxg4+ {[%emt 0:00:00]} 56. Kxf3 {[%emt 0:00:14]} Rh4 {[%emt 0:00:00]} 57. Kg3 {[%emt 0:00:43]} Rxh5 {[%emt 0:00:00]} 58. Kg4 {[%emt 0:00:09]} Rd5 {[%emt 0:00:00]} 59. Bf8 {[%emt 0:00:15]} Rd4+ {[%emt 0:00:00]} 0-1